fUST/lending_fUST_20250507
["ID","MTS","AMOUNT","RATE_DAILY","PERIOD"]
[360129201,1746561040144,-956.42,0.00019178,2]
[360129203,1746561040154,-400.0,0.00019178,2]
[360129205,1746561040165,-400.0,0.00019178,2]
[360129207,1746561040175,-400.0,0.00019178,2]
[360129209,1746561040186,-400.0,0.00019178,2]
[360129212,1746561040196,-427.19,0.00019178,2]
[360129214,1746561040207,-400.0,0.00019178,2]
[360129216,1746561040217,-400.0,0.00019178,2]
[360129218,1746561040227,-400.0,0.00019178,2]
[360129220,1746561040237,-400.0,0.00019178,2]
[360129222,1746561040247,-400.0,0.00019178,2]
[360129224,1746561040257,-400.0,0.00019178,2]
[360129226,1746561040267,-400.0,0.00019178,2]
[360129228,1746561040279,-400.0,0.00019178,2]
[360129230,1746561040289,-401.70271421,0.00019178,2]
[360129232,1746561040299,-400.0,0.00019178,2]
[360129234,1746561040309,-400.0,0.00019178,2]
[360129237,1746561040321,-400.0,0.00019178,2]
[360129239,1746561040331,-506.19767012,0.00019178,2]
[360129241,1746561040341,-400.0,0.00019178,2]
[360129243,1746561040350,-400.0,0.00019178,2]
[360129245,1746561040360,-400.0,0.00019178,2]
[360129247,1746561040369,-400.0,0.00019178,2]
[360129249,1746561040379,-400.0,0.00019178,2]
[360129251,1746561040389,-400.0,0.00019178,2]
[360129253,1746561040399,-400.0,0.00019178,2]
[360129255,1746561040409,-400.0,0.00019178,2]
[360129257,1746561040419,-400.0,0.00019178,2]
[360129259,1746561040429,-400.0,0.00019178,2]
[360129261,1746561040438,-400.0,0.00019178,2]
[360129263,1746561040448,-1250.36,0.00019178,2]
[360129265,1746561040458,-234.1504007,0.00019178,2]
[360129267,1746561040468,-401.33650777,0.00019178,2]
[360129269,1746561040478,-481.53152116,0.00019178,2]
[360129271,1746561040487,-400.0,0.00019178,2]
[360129273,1746561040497,-400.0,0.00019178,2]
[360129275,1746561040507,-400.0,0.00019178,2]
[360129277,1746561040519,-400.0,0.00019178,2]
[360129279,1746561040530,-400.0,0.00019178,2]
[360129281,1746561040539,-400.0,0.00019178,2]
[360129284,1746561040549,-309.69643883,0.00019178,2]
[360129286,1746561040560,-403.35361379,0.00019178,2]
[360129288,1746561040569,-552.33,0.00019178,2]
[360129290,1746561040579,-511.39966207,0.00019178,2]
[360129292,1746561040589,-400.0,0.00019178,2]
[360129294,1746561040599,-400.0,0.00019178,2]
[360129296,1746561040609,-1012.56,0.00019178,2]
[360129298,1746561040618,-541.4,0.00019178,2]
[360129300,1746561040627,-406.72015398,0.00019178,2]
[360129302,1746561040637,-400.0,0.00019178,2]
[360129304,1746561040647,-400.0,0.00019178,2]
[360129306,1746561040656,-400.0,0.00019178,2]
[360129308,1746561040666,-513.04252661,0.00019178,2]
[360129310,1746561040676,-401.36702011,0.00019178,2]
[360129312,1746561040686,-463.5,0.00019178,2]
[360129314,1746561040695,-1705.5,0.00019178,2]
[360129316,1746561040705,-400.0,0.00019178,2]
[360129318,1746561040715,-400.0,0.00019178,2]
[360129320,1746561040724,-582.88,0.00019178,2]
[360129322,1746561040734,-400.0,0.00019178,2]
[360129324,1746561040744,-400.0,0.00019178,2]
[360129326,1746561040753,-401.30563412,0.00019178,2]
[360129328,1746561040763,-400.0,0.00019178,2]
[360129330,1746561040773,-400.0,0.00019178,2]
[360129332,1746561040784,-400.0,0.00019178,2]
[360129334,1746561040793,-400.0,0.00019178,2]
[360129336,1746561040803,-400.0,0.00019178,2]
[360129339,1746561040813,-400.0,0.00019178,2]
[360129341,1746561040823,-400.0,0.00019178,2]
[360129343,1746561040832,-400.0,0.00019178,2]
[360129345,1746561040841,-400.0,0.00019178,2]
[360129347,1746561040850,-216.3917953,0.00019178,2]
[360129349,1746561040860,-400.0,0.00019178,2]
[360129351,1746561040870,-400.0,0.00019178,2]
[360129353,1746561040879,-400.0,0.00019178,2]
[360129355,1746561040889,-400.0,0.00019178,2]
[360129357,1746561040899,-500.0,0.00019178,2]
[360129359,1746561040908,-400.0,0.00019178,2]
[360129361,1746561040918,-231.68795328,0.00019178,2]
[360129363,1746561040927,-400.0,0.00019178,2]
[360129365,1746561040937,-400.0,0.00019178,2]
[360129367,1746561040946,-400.0,0.00019178,2]
[360129369,1746561040955,-400.0,0.00019178,2]
[360129371,1746561040965,-400.0,0.00019178,2]
[360129373,1746561040975,-204.21910831,0.00019178,2]
[360129375,1746561040985,-400.0,0.00019178,2]
[360129377,1746561040994,-400.0,0.00019178,2]
[360129379,1746561041004,-400.0,0.00019178,2]
[360129381,1746561041013,-204.85885003,0.00019178,2]
[360129383,1746561041023,-400.0,0.00019178,2]
[360129385,1746561041033,-400.0,0.00019178,2]
[360129387,1746561041042,-400.0,0.00019178,2]
[360129389,1746561041052,-1994.82,0.00019178,2]
[360129391,1746561041062,-400.0,0.00019178,2]
[360129393,1746561041072,-400.0,0.00019178,2]
[360129395,1746561041082,-400.0,0.00019178,2]
[360129397,1746561041092,-844.65,0.00019178,2]
[360129400,1746561041101,-343.05919239,0.00019178,2]
[360129402,1746561041111,-1371.83,0.00019178,2]
[360129404,1746561041120,-400.0,0.00019178,2]
[360129406,1746561041130,-952.74,0.00019178,2]
[360129407,1746561041141,-400.0,0.00019178,2]
[360129410,1746561041151,-509.23200127,0.00019178,2]
[360129412,1746561041161,-400.0,0.00019178,2]
[360129414,1746561041171,-625.03,0.00019178,2]
[360129416,1746561041181,-1026.77,0.00019178,2]
[360129418,1746561041191,-400.0,0.00019178,2]
[360129420,1746561041202,-561.82,0.00019178,2]
[360129422,1746561041212,-400.0,0.00019178,2]
[360129424,1746561041221,-561.93,0.00019178,2]
[360129426,1746561041231,-400.0,0.00019178,2]
[360129428,1746561041241,-400.0,0.00019178,2]
[360129430,1746561041251,-400.0,0.00019178,2]
[360129432,1746561041260,-505.72161325,0.00019178,2]
[360129434,1746561041270,-474.87,0.00019178,2]
[360129436,1746561041280,-425.58788198,0.00019178,2]
[360129438,1746561041290,-584.43,0.00019178,2]
[360129440,1746561041302,-400.0,0.00019178,2]
[360129442,1746561041312,-400.0,0.00019178,2]
[360129444,1746561041321,-642.63,0.00019178,2]
[360129446,1746561041331,-400.0,0.00019178,2]
[360129448,1746561041340,-400.0,0.00019178,2]
[360129450,1746561041350,-352.62338438,0.00019178,2]
[360129453,1746561041360,-2468.85,0.00019178,2]
[360129455,1746561041369,-203.04065088,0.00019178,2]
[360129457,1746561041379,-419.0,0.00019178,2]
[360129459,1746561041389,-401.28101685,0.00019178,2]
[360129461,1746561041399,-400.0,0.00019178,2]
[360129463,1746561041408,-400.0,0.00019178,2]
[360129465,1746561041417,-400.0,0.00019178,2]
[360129467,1746561041427,-400.0,0.00019178,2]
[360129469,1746561041436,-400.0,0.00019178,2]
[360129471,1746561041446,-400.97084348,0.00019178,2]
[360129472,1746561041455,-400.0,0.00019178,2]
[360129473,1746561041465,-400.0,0.00019178,2]
[360129474,1746561041473,-400.0,0.00019178,2]
[360129475,1746561041483,-418.59343452,0.00019178,2]
[360129476,1746561041492,-400.0,0.00019178,2]
[360129477,1746561041502,-738.44,0.00019178,2]
[360129478,1746561041511,-738.44,0.00019178,2]
[360129479,1746561041521,-400.0,0.00019178,2]
[360129480,1746561041533,-738.44,0.00019178,2]
[360129481,1746561041542,-738.44,0.00019178,2]
[360129482,1746561041551,-738.44,0.00019178,2]
[360129483,1746561041561,-738.44,0.00019178,2]
[360129484,1746561041570,-400.0,0.00019178,2]
[360129485,1746561041580,-738.44,0.00019178,2]
[360129486,1746561041589,-738.44,0.00019178,2]
[360129487,1746561041599,-738.44,0.00019178,2]
[360129488,1746561041608,-738.44,0.00019178,2]
[360129489,1746561041617,-738.44,0.00019178,2]
[360129490,1746561041627,-738.44,0.00019178,2]
[360129492,1746561041636,-738.44,0.00019178,2]
[360129493,1746561041645,-402.39565763,0.00019178,2]
[360129495,1746561041655,-401.05920041,0.00019178,2]
[360129497,1746561041664,-738.44,0.00019178,2]
[360129499,1746561041674,-738.44,0.00019178,2]
[360129502,1746561041684,-738.44,0.00019178,2]
[360129504,1746561041695,-738.44,0.00019178,2]
[360129521,1746561041840,-738.44,0.00019178,2]
[360129523,1746561041850,-738.44,0.00019178,2]
[360129525,1746561041860,-738.44,0.00019178,2]
[360129527,1746561041869,-738.44,0.00019178,2]
[360129529,1746561041878,-738.44,0.00019178,2]
[360129531,1746561041887,-738.44,0.00019178,2]
[360129533,1746561041898,-738.53,0.00019178,2]
[360129535,1746561041907,-400.0,0.00019178,2]
[360129537,1746561041916,-400.0,0.00019178,2]
[360129539,1746561041925,-400.0,0.00019178,2]
[360129541,1746561041935,-920.21,0.00019178,2]
[360129543,1746561041944,-400.0,0.00019178,2]
[360129545,1746561041954,-500.0,0.00019178,2]
[360129547,1746561041963,-400.0,0.00019178,2]
[360129549,1746561041972,-500.0,0.00019178,2]
[360129551,1746561041982,-400.0,0.00019178,2]
[360129553,1746561041991,-500.0,0.00019178,2]
[360129555,1746561042001,-500.0,0.00019178,2]
[360129557,1746561042010,-500.0,0.00019178,2]
[360129559,1746561042020,-500.0,0.00019178,2]
[360129561,1746561042029,-400.0,0.00019178,2]
[360129563,1746561042038,-400.0,0.00019178,2]
[360129565,1746561042047,-400.0,0.00019178,2]
[360129567,1746561042056,-415.3774956,0.00019178,2]
[360129569,1746561042066,-400.0,0.00019178,2]
[360129571,1746561042075,-403.2886634,0.00019178,2]
[360129573,1746561042084,-400.0,0.00019178,2]
[360129575,1746561042093,-400.0,0.00019178,2]
[360129577,1746561042103,-442.61,0.00019178,2]
[360129579,1746561042112,-400.0,0.00019178,2]
[360129581,1746561042121,-400.0,0.00019178,2]
[360129583,1746561042130,-400.0,0.00019178,2]
[360129585,1746561042141,-400.0,0.00019178,2]
[360129586,1746561042150,-400.0,0.00019178,2]
[360129589,1746561042160,-400.0,0.00019178,2]
[360129590,1746561042169,-400.91459012,0.00019178,2]
[360129593,1746561042179,-1678.9,0.00019178,2]
[360129594,1746561042188,-400.0,0.00019178,2]
[360129596,1746561042197,-400.0,0.00019178,2]
[360129598,1746561042206,-400.0,0.00019178,2]
[360129600,1746561042216,-1034.22,0.00019178,2]
[360129603,1746561042226,-400.0,0.00019178,2]
[360129606,1746561042235,-400.0,0.00019178,2]
[360129609,1746561042245,-459.42975202,0.00019178,2]
[360129612,1746561042255,-440.91,0.00019178,2]
[360129615,1746561042264,-400.0,0.00019178,2]
[360129618,1746561042274,-428.54,0.00019178,2]
[360129621,1746561042283,-504.16376864,0.00019178,2]
[360129624,1746561042293,-400.0,0.00019178,2]
[360129627,1746561042303,-400.0,0.00019178,2]
[360129630,1746561042312,-400.0,0.00019178,2]
[360129632,1746561042321,-400.0,0.00019178,2]
[360129634,1746561042330,-400.0,0.00019178,2]
[360129636,1746561042340,-502.25070254,0.00019178,2]
[360129638,1746561042349,-1269.6,0.00019178,2]
[360129641,1746561042360,-401.21,0.00019178,2]
[360129643,1746561042371,-400.0,0.00019178,2]
[360129645,1746561042381,-400.0,0.00019178,2]
[360129647,1746561042391,-5052.44,0.00019178,2]
[360129649,1746561042400,-1258.23,0.00019178,2]
[360129651,1746561042410,-400.0,0.00019178,2]
[360129653,1746561042419,-400.0,0.00019178,2]
[360129655,1746561042428,-400.0,0.00019178,2]
[360129657,1746561042437,-500.0,0.00019178,2]
[360129659,1746561042447,-500.0,0.00019178,2]
[360129661,1746561042457,-608.60332497,0.00019178,2]
[360129663,1746561042466,-500.0,0.00019178,2]
[360129665,1746561042475,-400.0,0.00019178,2]
[360129668,1746561042486,-3237.3,0.00019178,2]
[360129671,1746561042495,-400.0,0.00019178,2]
[360129674,1746561042505,-698.27,0.00019178,2]
[360129678,1746561042514,-400.0,0.00019178,2]
[360129682,1746561042525,-400.0,0.00019178,2]
[360129686,1746561042537,-400.0,0.00019178,2]
[360129690,1746561042546,-400.0,0.00019178,2]
[360129694,1746561042555,-400.0,0.00019178,2]
[360129697,1746561042565,-402.76247651,0.00019178,2]
[360129700,1746561042574,-606.03,0.00019178,2]
[360129703,1746561042583,-1125.47,0.00019178,2]
[360129706,1746561042593,-400.0,0.00019178,2]
[360129709,1746561042603,-400.0,0.00019178,2]
[360129711,1746561042613,-400.0,0.00019178,2]
[360129713,1746561042622,-400.0,0.00019178,2]
[360129715,1746561042631,-400.0,0.00019178,2]
[360129717,1746561042641,-842.83,0.00019178,2]
[360129719,1746561042651,-400.0,0.00019178,2]
[360129721,1746561042660,-400.0,0.00019178,2]
[360129723,1746561042669,-400.0,0.00019178,2]
[360129725,1746561042678,-1000.0,0.00019178,2]
[360129727,1746561042688,-400.0,0.00019178,2]
[360129729,1746561042699,-402.82132138,0.00019178,2]
[360129731,1746561042708,-400.0,0.00019178,2]
[360129733,1746561042717,-400.0,0.00019178,2]
[360129735,1746561042727,-489.46,0.00019178,2]
[360129737,1746561042736,-400.0,0.00019178,2]
[360129739,1746561042746,-1685.33,0.00019178,2]
[360129741,1746561042755,-802.57,0.00019178,2]
[360129743,1746561042764,-486.35,0.00019178,2]
[360129745,1746561042774,-400.0,0.00019178,2]
[360129747,1746561042783,-400.0,0.00019178,2]
[360129749,1746561042792,-400.0,0.00019178,2]
[360129751,1746561042801,-400.0,0.00019178,2]
[360129753,1746561042810,-400.0,0.00019178,2]
[360129755,1746561042819,-468.56,0.00019178,2]
[360129757,1746561042829,-1641.08,0.00019178,2]
[360129759,1746561042838,-400.0,0.00019178,2]
[360129761,1746561042847,-1651.92,0.00019178,2]
[360129763,1746561042856,-358.0,0.00019178,2]
[360129765,1746561042866,-291.15370518,0.00019178,2]
[360129767,1746561042875,-400.0,0.00019178,2]
[360129769,1746561042886,-400.0,0.00019178,2]
[360129771,1746561042895,-400.0,0.00019178,2]
[360129773,1746561042904,-400.0,0.00019178,2]
[360129775,1746561042914,-400.0,0.00019178,2]
[360129777,1746561042923,-548.41,0.00019178,2]
[360129779,1746561042932,-400.0,0.00019178,2]
[360129781,1746561042942,-400.0,0.00019178,2]
[360129783,1746561042952,-823.54,0.00019178,2]
[360129785,1746561042961,-400.0,0.00019178,2]
[360129787,1746561042970,-5642.1,0.00019178,2]
[360129789,1746561042979,-400.0,0.00019178,2]
[360129791,1746561042988,-500.84393885,0.00019178,2]
[360129793,1746561042999,-400.0,0.00019178,2]
[360129795,1746561043008,-404.34239598,0.00019178,2]
[360129797,1746561043018,-400.0,0.00019178,2]
[360129799,1746561043027,-400.0,0.00019178,2]
[360129801,1746561043036,-400.0,0.00019178,2]
[360129803,1746561043046,-563.37,0.00019178,2]
[360129805,1746561043055,-400.0,0.00019178,2]
[360129807,1746561043064,-400.0,0.00019178,2]
[360129809,1746561043074,-400.0,0.00019178,2]
[360129811,1746561043083,-529.91430435,0.00019178,2]
[360129814,1746561043093,-518.87988151,0.00019178,2]
[360129816,1746561043102,-460.53,0.00019178,2]
[360129818,1746561043112,-400.0,0.00019178,2]
[360129820,1746561043121,-406.16086678,0.00019178,2]
[360129822,1746561043130,-406.77745766,0.00019178,2]
[360129824,1746561043139,-400.0,0.00019178,2]
[360129826,1746561043149,-400.0,0.00019178,2]
[360129828,1746561043158,-400.0,0.00019178,2]
[360129830,1746561043167,-405.80884421,0.00019178,2]
[360129832,1746561043176,-451.51,0.00019178,2]
[360129834,1746561043185,-500.0,0.00019178,2]
[360129836,1746561043194,-400.0,0.00019178,2]
[360129838,1746561043203,-500.0,0.00019178,2]
[360129840,1746561043212,-400.0,0.00019178,2]
[360129842,1746561043221,-500.0,0.00019178,2]
[360129843,1746561043231,-400.0,0.00019178,2]
[360129844,1746561043241,-400.84686798,0.00019178,2]
[360129845,1746561043250,-400.0,0.00019178,2]
[360129847,1746561043260,-400.0,0.00019178,2]
[360129849,1746561043270,-400.0,0.00019178,2]
[360129850,1746561043279,-400.0,0.00019178,2]
[360129852,1746561043288,-400.0,0.00019178,2]
[360129854,1746561043299,-400.0,0.00019178,2]
[360129856,1746561043309,-400.0,0.00019178,2]
[360129858,1746561043318,-400.0,0.00019178,2]
[360129860,1746561043328,-400.0,0.00019178,2]
[360129862,1746561043338,-400.0,0.00019178,2]
[360129864,1746561043346,-400.0,0.00019178,2]
[360129866,1746561043356,-400.0,0.00019178,2]
[360129868,1746561043365,-400.0,0.00019178,2]
[360129870,1746561043374,-400.0,0.00019178,2]
[360129872,1746561043384,-404.06834625,0.00019178,2]
[360129874,1746561043392,-400.0,0.00019178,2]
[360129876,1746561043401,-400.0,0.00019178,2]
[360129878,1746561043410,-400.0,0.00019178,2]
[360129880,1746561043418,-400.0,0.00019178,2]
[360129882,1746561043426,-400.0,0.00019178,2]
[360129884,1746561043435,-526.14095047,0.00019178,2]
[360129886,1746561043444,-400.0,0.00019178,2]
[360129888,1746561043452,-400.0,0.00019178,2]
[360129890,1746561043460,-400.0,0.00019178,2]
[360129892,1746561043469,-400.0,0.00019178,2]
[360129894,1746561043478,-267.4974309,0.00019178,2]
[360129896,1746561043486,-400.0,0.00019178,2]
[360129898,1746561043495,-400.0,0.00019178,2]
[360129900,1746561043505,-327.56483332,0.00019178,2]
[360129902,1746561043514,-400.0,0.00019178,2]
[360129904,1746561043525,-502.39141238,0.00019178,2]
[360129906,1746561043539,-418.11095225,0.00019178,2]
[360129908,1746561043548,-400.0,0.00019178,2]
[360129910,1746561043557,-401.8360317,0.00019178,2]
[360129913,1746561043567,-821.69,0.00019178,2]
[360129914,1746561043577,-400.0,0.00019178,2]
[360129916,1746561043586,-400.0,0.00019178,2]
[360129918,1746561043595,-400.0,0.00019178,2]
[360129920,1746561043605,-477.19,0.00019178,2]
[360129922,1746561043615,-400.0,0.00019178,2]
[360129925,1746561043624,-400.0,0.00019178,2]
[360129927,1746561043635,-400.0,0.00019178,2]
[360129929,1746561043644,-400.0,0.00019178,2]
[360129931,1746561043654,-648.24,0.00019178,2]
[360129933,1746561043663,-746.96,0.00019178,2]
[360129935,1746561043672,-401.69087347,0.00019178,2]
[360129937,1746561043682,-400.0,0.00019178,2]
[360129939,1746561043690,-400.0,0.00019178,2]
[360129941,1746561043699,-400.0,0.00019178,2]
[360129943,1746561043708,-400.0,0.00019178,2]
[360129945,1746561043718,-532.44,0.00019178,2]
[360129947,1746561043727,-400.0,0.00019178,2]
[360129949,1746561043736,-400.0,0.00019178,2]
[360129951,1746561043745,-400.0,0.00019178,2]
[360129953,1746561043754,-400.0,0.00019178,2]
[360129955,1746561043763,-400.0,0.00019178,2]
[360129957,1746561043773,-400.0,0.00019178,2]
[360129959,1746561043782,-400.0,0.00019178,2]
[360129961,1746561043790,-1000.0,0.00019178,2]
[360129963,1746561043799,-3486.01,0.00019178,2]
[360129964,1746561043808,-1391.43,0.00019178,2]
[360129966,1746561043816,-400.0,0.00019178,2]
[360129968,1746561043825,-400.0,0.00019178,2]
[360129970,1746561043834,-400.0,0.00019178,2]
[360129985,1746561043954,-400.0,0.00019178,2]
[360129987,1746561043963,-403.83784036,0.00019178,2]
[360129989,1746561043972,-400.0,0.00019178,2]
[360129991,1746561043981,-250.28177358,0.00019178,2]
[360129993,1746561043990,-583.66,0.00019178,2]
[360129995,1746561043999,-353.28047129,0.00019178,2]
[360129997,1746561044009,-400.0,0.00019178,2]
[360129999,1746561044018,-400.0,0.00019178,2]
[360130001,1746561044028,-400.0,0.00019178,2]
[360130003,1746561044036,-400.0,0.00019178,2]
[360130005,1746561044046,-400.0,0.00019178,2]
[360130007,1746561044055,-400.0,0.00019178,2]
[360130009,1746561044063,-400.0,0.00019178,2]
[360130011,1746561044072,-400.42065851,0.00019178,2]
[360130013,1746561044081,-400.0,0.00019178,2]
[360130015,1746561044090,-346.12022662,0.00019178,2]
[360130017,1746561044098,-408.25050653,0.00019178,2]
[360130019,1746561044108,-400.0,0.00019178,2]
[360130021,1746561044117,-858.84,0.00019178,2]
[360130023,1746561044127,-400.0,0.00019178,2]
[360130025,1746561044136,-436.53221498,0.00019178,2]
[360130027,1746561044146,-401.14486658,0.00019178,2]
[360130029,1746561044155,-400.0,0.00019178,2]
[360130031,1746561044164,-400.0,0.00019178,2]
[360130033,1746561044174,-678.31,0.00019178,2]
[360130035,1746561044183,-509.59,0.00019178,2]
[360130037,1746561044193,-2159.99,0.00019178,2]
[360130039,1746561044202,-400.0,0.00019178,2]
[360130041,1746561044211,-400.0,0.00019178,2]
[360130043,1746561044220,-400.0,0.00019178,2]
[360130045,1746561044229,-400.0,0.00019178,2]
[360130047,1746561044239,-1423.51,0.00019178,2]
[360130049,1746561044247,-611.24,0.00019178,2]
[360130051,1746561044257,-2670.92,0.00019178,2]
[360130053,1746561044267,-400.0,0.00019178,2]
[360130055,1746561044276,-400.0,0.00019178,2]
[360130057,1746561044285,-400.0,0.00019178,2]
[360130059,1746561044295,-400.0,0.00019178,2]
[360130061,1746561044304,-400.0,0.00019178,2]
[360130063,1746561044313,-400.0,0.00019178,2]
[360130065,1746561044322,-400.0,0.00019178,2]
[360130067,1746561044335,-400.0,0.00019178,2]
[360130069,1746561044344,-400.0,0.00019178,2]
[360130071,1746561044353,-906.0,0.00019178,2]
[360130073,1746561044362,-400.0,0.00019178,2]
[360130075,1746561044371,-5693.77,0.00019178,2]
[360130077,1746561044381,-400.0,0.00019178,2]
[360130079,1746561044390,-242.78921981,0.00019178,2]
[360130081,1746561044400,-506.24899933,0.00019178,2]
[360130083,1746561044409,-402.61,0.00019178,2]
[360130085,1746561044418,-500.0,0.00019178,2]
[360130087,1746561044428,-500.0,0.00019178,2]
[360130089,1746561044437,-500.0,0.00019178,2]
[360130091,1746561044446,-500.0,0.00019178,2]
[360130093,1746561044455,-400.0,0.00019178,2]
[360130095,1746561044465,-400.0,0.00019178,2]
[360130097,1746561044474,-500.0,0.00019178,2]
[360130099,1746561044483,-500.0,0.00019178,2]
[360130101,1746561044493,-1175.32,0.00019178,2]
[360130103,1746561044502,-500.0,0.00019178,2]
[360130105,1746561044510,-400.0,0.00019178,2]
[360130107,1746561044519,-500.0,0.00019178,2]
[360130109,1746561044530,-500.0,0.00019178,2]
[360130111,1746561044540,-500.0,0.00019178,2]
[360130113,1746561044549,-500.0,0.00019178,2]
[360130115,1746561044558,-400.0,0.00019178,2]
[360130117,1746561044567,-500.0,0.00019178,2]
[360130119,1746561044578,-500.0,0.00019178,2]
[360130121,1746561044587,-500.0,0.00019178,2]
[360130123,1746561044597,-500.0,0.00019178,2]
[360130124,1746561044607,-400.0,0.00019178,2]
[360130127,1746561044617,-2880.62,0.00019178,2]
[360130128,1746561044628,-400.0,0.00019178,2]
[360130130,1746561044637,-500.0,0.00019178,2]
[360130132,1746561044647,-692.67,0.00019178,2]
[360130134,1746561044656,-500.0,0.00019178,2]
[360130136,1746561044665,-401.01869542,0.00019178,2]
[360130138,1746561044675,-400.0,0.00019178,2]
[360130140,1746561044684,-402.34484471,0.00019178,2]
[360130142,1746561044693,-400.0,0.00019178,2]
[360130144,1746561044702,-400.0,0.00019178,2]
[360130146,1746561044711,-400.0,0.00019178,2]
[360130148,1746561044720,-1073.29,0.00019178,2]
[360130150,1746561044729,-332.90977984,0.00019178,2]
[360130152,1746561044739,-176.15756633,0.00019178,2]
[360130154,1746561044748,-404.44071544,0.00019178,2]
[360130157,1746561044757,-1641.79,0.00019178,2]
[360130159,1746561044767,-400.0,0.00019178,2]
[360130161,1746561044776,-400.0,0.00019178,2]
[360130162,1746561044785,-217.8951033,0.00019178,2]
[360130164,1746561044794,-401.53584369,0.00019178,2]
[360130166,1746561044803,-505.38791715,0.00019178,2]
[360130168,1746561044812,-400.0,0.00019178,2]
[360130170,1746561044822,-500.0,0.00019178,2]
[360130173,1746561044831,-400.0,0.00019178,2]
[360130175,1746561044840,-400.0,0.00019178,2]
[360130177,1746561044851,-400.0,0.00019178,2]
[360130179,1746561044861,-2451.0,0.00019178,2]
[360130181,1746561044870,-400.0,0.00019178,2]
[360130183,1746561044879,-400.0,0.00019178,2]
[360130185,1746561044888,-408.95706626,0.00019178,2]
[360130187,1746561044898,-432.39,0.00019178,2]
[360130189,1746561044907,-500.0,0.00019178,2]
[360130191,1746561044917,-400.0,0.00019178,2]
[360130193,1746561044926,-400.0,0.00019178,2]
[360130195,1746561044936,-400.0,0.00019178,2]
[360130197,1746561044946,-400.0,0.00019178,2]
[360130199,1746561044956,-400.0,0.00019178,2]
[360130201,1746561044966,-1957.05,0.00019178,2]
[360130203,1746561044975,-402.47607156,0.00019178,2]
[360130205,1746561044985,-400.0,0.00019178,2]
[360130207,1746561044995,-403.64686653,0.00019178,2]
[360130209,1746561045004,-1982.6,0.00019178,2]
[360130211,1746561045014,-400.0,0.00019178,2]
[360130213,1746561045023,-400.86104084,0.00019178,2]
[360130215,1746561045033,-1351.99,0.00019178,2]
[360130217,1746561045042,-400.0,0.00019178,2]
[360130218,1746561045052,-400.0,0.00019178,2]
[360130219,1746561045061,-400.0,0.00019178,2]
[360130220,1746561045070,-561.19,0.00019178,2]
[360130221,1746561045080,-400.0,0.00019178,2]
[360130222,1746561045089,-400.0,0.00019178,2]
[360130223,1746561045098,-400.0,0.00019178,2]
[360130224,1746561045107,-2731.25,0.00019178,2]
[360130225,1746561045116,-400.0,0.00019178,2]
[360130226,1746561045126,-417.45388257,0.00019178,2]
[360130227,1746561045135,-1730.35,0.00019178,2]
[360130228,1746561045145,-2294.47,0.00019178,2]